bitfinex-derivatives/quotes_ETHF0:USTF0_20250115
["timestamp","ask_amount","ask_price","bid_price","bid_amount"]
[1736974497387,1.2723,3444.5,3444.0,0.58062]
[1736974497587,1.2723,3444.5,3443.8,3.2078]
[1736974497793,1.2723,3444.5,3444.0,0.58062]
[1736974497794,0.6328,3444.4,3444.0,0.58062]
[1736974497996,0.6328,3444.4,3443.9,40.8]
[1736974498195,0.58063,3444.0,3443.9,40.8]
[1736974498488,1.45145,3444.3,3443.8,3.2078]
[1736974498693,0.58064,3443.9,3443.8,3.2078]
[1736974499086,0.58064,3443.9,3443.8,44.0078]
[1736974499882,2.08424,3444.4,3443.8,44.0078]
[1736974500086,3.2078,3444.3,3443.8,44.0078]
[1736974500288,0.6328,3444.4,3444.3,0.58058]
[1736974500500,3.2078,3445.2,3444.3,5.51037426]
[1736974500797,3.2078,3445.7,3444.8,2.30257426]
[1736974500991,0.58039,3445.5,3445.3,0.58041]
[1736974501297,0.58032,3445.9,3445.6,0.58034]
[1736974501495,3.2078,3446.1,3445.4,40.8]
[1736974501794,0.58033,3445.8,3445.6,0.58035]
[1736974501989,0.6399,3446.1,3445.4,43.10257426]
[1736974502190,0.58037,3445.5,3445.4,40.8]
[1736974502588,0.58042,3445.3,3445.1,3.2078]
[1736974502793,0.58042,3445.3,3445.2,0.58043]
[1736974502995,0.58051,3444.8,3444.6,3.78831]
[1736974503291,0.58047,3445.0,3444.8,0.58049]
[1736974503485,0.58047,3445.0,3444.4,3.2078]
[1736974503798,3.2078,3445.0,3444.5,40.8]
[1736974504001,3.2078,3444.6,3443.6,1.238]
[1736974504301,0.58066,3443.9,3443.5,3.2078]
[1736974504492,0.58065,3443.9,3443.7,0.58067]
[1736974504800,0.6653,3444.3,3443.6,40.8]
[1736974505092,3.2078,3444.1,3443.1,7.87909499]
[1736974505303,0.58067,3443.8,3443.6,0.58069]
[1736974505691,0.58066,3443.8,3443.6,0.58069]
[1736974506290,3.2078,3444.1,3443.2,40.8]
[1736974506495,0.6653,3444.3,3442.9,0.66]
[1736974506496,0.58079,3443.1,3442.9,0.66]
[1736974506696,0.58079,3443.1,3442.9,0.07919]
[1736974506892,3.2078,3443.3,3442.9,0.65999]
[1736974507195,3.2078,3443.3,3442.9,40.87919]
[1736974507596,0.58076,3443.2,3442.9,41.45999]
[1736974507799,3.78856,3443.3,3443.1,0.58078]
[1736974507997,3.2078,3443.3,3442.9,40.87919]
[1736974508194,3.2078,3443.3,3442.9,41.45999]
[1736974508695,0.58076,3443.2,3443.0,0.58079]
[1736974509399,3.2078,3443.3,3442.9,40.87919]
[1736974509596,0.5808,3443.0,3442.9,0.07919]
[1736974510399,0.5808,3443.0,3442.8,0.58082]
[1736974510792,3.2078,3443.3,3442.3,3.2078]
[1736974510995,3.2078,3442.5,3441.6,0.6246]
[1736974511506,0.5809,3442.4,3442.1,0.58094]
[1736974511698,3.2078,3442.5,3442.1,0.58094]
[1736974511900,3.2078,3442.5,3441.6,4.20377499]
[1736974512194,3.2078,3442.5,3441.6,2.75119499]
[1736974512395,0.5809,3442.4,3442.1,0.58095]
[1736974512604,0.5809,3442.4,3442.0,0.58095]
[1736974512805,0.58095,3442.1,3441.8,0.58099]
[1736974513097,0.6637,3442.4,3441.5,3.2078]
[1736974513299,0.6637,3442.4,3441.6,0.58103]
[1736974513300,0.58094,3442.2,3441.6,0.58103]
[1736974513503,0.58096,3442.1,3441.8,0.58099]
[1736974513803,0.58096,3442.1,3441.8,41.38099]
[1736974514103,0.6637,3442.4,3441.8,40.8]
[1736974514399,0.58094,3442.2,3441.9,0.58098]
[1736974514603,0.58094,3442.2,3441.8,40.8]
[1736974514797,0.6637,3442.4,3441.8,40.8]
[1736974514997,0.58092,3442.3,3442.0,0.58096]
[1736974515496,0.58092,3442.3,3441.9,0.58097]
[1736974515696,0.58092,3442.3,3442.0,0.58095]
[1736974515906,0.6637,3442.4,3442.1,0.58094]
[1736974516396,0.6637,3442.4,3441.8,40.8]
[1736974516596,1.24461,3442.4,3441.8,40.8]
[1736974516797,1.24461,3442.4,3442.1,0.58094]
[1736974516995,0.6637,3442.4,3441.8,40.8]
[1736974517207,0.6637,3442.4,3442.2,0.58093]
[1736974517702,1.24461,3442.4,3442.1,0.58094]
[1736974518500,0.5809,3442.4,3442.1,0.58093]
[1736974518799,3.8371,3442.5,3441.9,3.2078]
[1736974519005,3.8371,3442.5,3442.4,0.5809]
[1736974519406,4.41798,3442.5,3442.3,0.58091]
[1736974519795,4.41798,3442.5,3442.2,0.58092]
[1736974519796,0.5809,3442.4,3442.2,0.58092]
[1736974520002,3.8371,3442.5,3442.4,0.5809]
[1736974520402,0.6293,3442.5,3442.4,0.5809]
[1736974520603,0.6293,3442.5,3441.9,4.66025]
[1736974520804,3.2078,3442.9,3442.0,4.20358499]
[1736974521103,4.4556,3443.3,3443.2,0.58076]
[1736974521300,0.6053,3443.3,3443.2,0.58076]
[1736974521702,0.58079,3443.1,3442.5,3.861]
[1736974521908,0.58076,3443.2,3443.1,0.58078]
[1736974522402,4.39386,3443.3,3442.6,1.45216]
[1736974522604,0.58078,3443.2,3442.6,1.45216]
[1736974523107,0.58076,3443.2,3442.5,3.861]
[1736974523307,0.58076,3443.2,3443.1,0.58078]
[1736974524103,3.8131,3443.3,3442.6,1.45217]
[1736974524407,0.58077,3443.2,3443.1,0.58077]
[1736974524609,3.8131,3443.3,3443.1,0.58077]
[1736974524802,0.58071,3443.6,3442.9,3.2078]
[1736974524997,0.58071,3443.6,3442.5,0.6532]
[1736974524998,3.2078,3443.7,3442.6,1.45214]
[1736974525202,0.58085,3442.8,3442.7,0.58084]
[1736974525404,0.58083,3442.9,3442.8,0.58082]
[1736974526415,0.58083,3442.9,3442.7,0.58083]
[1736974526416,0.58084,3442.8,3442.7,0.58083]
[1736974526909,0.58084,3442.8,3442.6,0.58085]
[1736974526910,0.58086,3442.7,3442.6,0.58085]
[1736974527212,1.20014,3442.8,3442.7,0.58085]
[1736974527612,0.58087,3442.7,3442.6,0.58086]
[1736974528106,0.58088,3442.5,3442.4,44.58868]
[1736974528316,3.2078,3442.5,3441.8,0.6247]
[1736974528510,0.58093,3442.3,3442.2,0.58091]
[1736974528808,0.58095,3442.1,3442.0,0.58095]
[1736974529211,0.581,3441.8,3441.5,3.78884]
[1736974529411,0.581,3441.8,3441.5,3.2078]
[1736974529714,0.581,3441.8,3441.2,0.58109]
[1736974529907,2.75119499,3441.9,3441.0,3.78892]
[1736974530103,0.5811,3441.2,3441.0,3.2078]
[1736974530301,0.5811,3441.2,3441.1,0.58112]
[1736974530501,1.2353,3441.5,3441.0,3.2078]
[1736974530809,0.58111,3441.2,3441.1,0.58111]
[1736974531612,3.2078,3441.2,3440.8,0.58116]
[1736974531806,4.20400499,3441.1,3440.5,3.2078]
[1736974532006,3.2078,3441.2,3440.0,0.58129]
[1736974532007,2.75119499,3440.7,3440.0,0.58129]
[1736974532314,0.58129,3440.1,3439.9,0.58131]
[1736974532511,0.58127,3440.3,3439.4,3.2078]
[1736974532810,0.5813,3440.1,3439.5,0.58139]
[1736974533011,0.5813,3440.1,3439.8,0.58133]
[1736974533210,3.2078,3440.4,3439.4,3.2078]
[1736974533513,0.58126,3440.3,3439.9,0.5813]
[1736974533714,0.58126,3440.3,3440.0,0.5813]
[1736974534914,3.2078,3440.4,3439.5,40.8]
[1736974535110,2.75119499,3440.3,3439.5,40.8]
[1736974535310,3.2078,3440.0,3439.5,40.8]
[1736974535518,3.2078,3440.0,3439.4,3.2078]
[1736974535710,3.78911,3440.0,3439.7,0.58135]
[1736974536011,3.78911,3440.0,3439.4,3.2078]
[1736974536313,3.78904,3440.4,3440.1,0.58127]
[1736974536517,0.6358,3440.5,3440.2,0.58126]
[1736974536819,0.6358,3440.5,3439.4,3.2078]
[1736974537006,1.21703,3440.5,3440.2,0.58127]
[1736974537212,1.2609,3440.6,3439.8,3.2078]
[1736974537413,1.2609,3440.6,3440.4,0.58123]
[1736974537712,1.84212,3440.6,3440.4,0.58123]
[1736974537916,1.2609,3440.6,3440.5,0.58122]
[1736974538710,1.8421,3440.6,3440.5,0.58122]
[1736974538911,1.2609,3440.6,3440.5,0.58122]
[1736974539219,0.58122,3440.5,3440.2,0.58125]
[1736974539415,0.58124,3440.4,3440.2,0.58125]
[1736974539715,3.2078,3440.3,3439.4,3.2078]
[1736974540012,3.2078,3440.3,3440.2,0.58127]
[1736974540814,1.2609,3440.6,3440.5,0.58122]
[1736974541016,0.6076,3440.6,3440.5,0.58122]
[1736974541210,3.2078,3440.7,3440.0,1.45326]
[1736974541211,3.2078,3440.7,3440.6,0.5812]
[1736974542814,3.78898,3440.7,3440.6,0.5812]
[1736974543016,3.2078,3440.7,3440.6,0.5812]
[1736974543216,3.78898,3440.7,3440.6,0.5812]
[1736974543805,3.2078,3440.7,3440.5,0.58121]
[1736974544011,3.78899,3440.7,3440.6,0.5812]
[1736974545612,3.2078,3440.7,3440.6,0.5812]
[1736974545810,3.38659499,3441.1,3441.0,0.58113]
[1736974546019,3.38659499,3441.1,3439.6,2.90686]
[1736974546020,3.2078,3441.9,3440.9,4.20407499]
[1736974546313,3.2078,3441.9,3441.7,0.58102]
[1736974546314,0.58101,3441.8,3441.7,0.58102]
[1736974547117,3.2078,3441.9,3441.0,40.8]
[1736974547320,3.2078,3441.9,3441.2,1.45275]
[1736974547621,0.58101,3441.8,3441.7,0.581]
[1736974548721,0.58103,3441.7,3441.6,0.58102]
[1736974549314,3.2078,3441.9,3441.0,40.8]
[1736974549724,0.58102,3441.7,3441.5,0.58104]
[1736974550020,3.2078,3441.9,3440.8,2.06982]
[1736974550316,3.2078,3441.9,3441.4,0.58105]
[1736974550521,0.58104,3441.6,3441.4,0.58105]
[1736974550916,0.58101,3441.8,3441.5,0.58103]
[1736974551121,0.58101,3441.8,3441.6,0.58102]
[1736974551818,0.58102,3441.7,3441.6,0.58102]
[1736974552018,0.58104,3441.6,3441.5,0.58104]
[1736974552415,3.2078,3441.9,3441.2,3.2078]
[1736974552614,0.58103,3441.7,3441.6,0.58102]
[1736974553818,0.58101,3441.8,3441.7,0.581]
[1736974554018,3.2078,3441.9,3441.7,0.581]
[1736974554216,0.6393,3442.0,3441.9,0.58098]
[1736974554430,4.45682,3442.3,3442.2,0.58093]
[1736974554724,0.96723338,3442.6,3442.5,0.58088]
[1736974554925,0.38636338,3442.6,3441.8,2.11437]
[1736974555118,0.5809,3442.5,3442.4,0.58088]
[1736974555324,0.58091,3442.4,3442.3,0.5809]
[1736974555726,0.5809,3442.5,3442.4,0.58088]
[1736974557124,0.38636338,3442.6,3441.8,0.6619]
[1736974557326,3.2078,3442.7,3442.6,0.58086]
[1736974558223,3.78865,3442.7,3442.6,0.58086]
[1736974558428,3.2078,3442.7,3442.6,0.58086]
[1736974560125,0.58083,3442.8,3442.1,46.91726499]
[1736974560323,3.2078,3443.1,3442.1,0.6037]
[1736974560624,0.58086,3442.7,3442.1,0.6037]
[1736974560824,0.58084,3442.8,3442.6,0.58086]
[1736974561223,0.58085,3442.7,3442.5,0.58087]
[1736974561424,3.2078,3443.1,3442.1,2.05608]
[1736974561625,0.58085,3442.7,3442.5,0.58087]
[1736974561925,3.2078,3443.1,3442.1,0.6037]
[1736974562123,0.58089,3442.5,3442.3,0.5809]
[1736974563222,0.58085,3442.7,3442.5,0.58087]
[1736974563824,0.58087,3442.6,3442.4,0.58089]
[1736974564425,3.2078,3443.1,3442.4,0.58089]
[1736974564630,0.58087,3442.6,3442.4,0.58088]
[1736974564819,3.2078,3443.1,3442.5,0.58088]
[1736974565022,0.58085,3442.7,3442.0,3.2078]
[1736974565325,3.2078,3443.1,3442.0,3.2078]
[1736974565517,3.2078,3443.1,3442.4,3.2078]
[1736974565723,3.78858,3443.1,3443.0,0.5808]
[1736974565917,0.5808,3443.0,3442.9,0.58081]
[1736974566232,0.58086,3442.7,3442.4,3.2078]
[1736974566425,3.2078,3443.1,3442.4,3.2078]
[1736974566731,3.78858,3443.1,3443.0,0.5808]
[1736974567121,3.2078,3443.1,3442.4,3.2078]
[1736974567527,3.2078,3443.1,3443.0,0.5808]
[1736974568828,0.6641,3443.2,3443.1,0.58078]
[1736974569432,0.58074,3443.4,3442.8,3.2078]
[1736974569627,0.58074,3443.4,3443.2,0.58075]
[1736974569930,0.58074,3443.4,3443.3,0.58075]
[1736974570329,0.58076,3443.3,3443.1,0.58076]
[1736974570630,0.6113,3443.5,3443.2,0.58076]
[1736974570931,0.58074,3443.4,3443.3,0.58074]
[1736974571131,0.6113,3443.5,3442.8,3.8441]
[1736974571338,0.58075,3443.3,3443.2,0.58075]
[1736974571636,0.58073,3443.4,3443.3,0.58075]
[1736974571931,0.6113,3443.5,3442.9,40.8]
[1736974572328,0.6113,3443.5,3443.2,0.58076]
[1736974572329,0.58075,3443.3,3443.2,0.58076]
[1736974572831,0.58074,3443.4,3443.2,0.58076]
[1736974573034,0.58074,3443.4,3442.9,40.8]
[1736974573035,0.6113,3443.5,3442.9,40.8]
[1736974573230,0.58075,3443.3,3443.2,0.58075]
[1736974574235,0.58074,3443.4,3443.3,0.58074]
[1736974574533,0.58072,3443.5,3443.4,0.58072]
[1736974575033,0.6332,3443.7,3443.6,0.5807]
[1736974575333,0.5807,3443.6,3443.5,0.5807]
[1736974575529,0.5807,3443.6,3443.0,2.3034267]
[1736974575530,0.6332,3443.7,3443.0,2.3034267]
[1736974575735,0.58073,3443.4,3443.3,0.58074]
[1736974575931,0.6332,3443.7,3443.0,2.3034267]
[1736974576327,0.58072,3443.5,3443.0,2.3034267]
[1736974576533,0.58072,3443.5,3443.4,0.58073]
[1736974577033,0.58073,3443.4,3443.3,0.58073]
[1736974577731,3.841,3443.7,3443.0,2.3034267]
[1736974578034,0.58074,3443.4,3443.3,0.58073]
[1736974579040,3.841,3443.7,3442.9,1.3849]
[1736974579536,1.45175,3443.6,3443.2,0.58076]
[1736974579733,0.58076,3443.3,3443.2,0.58076]
[1736974580230,3.841,3443.7,3442.9,1.3849]
[1736974580438,0.58075,3443.3,3443.2,0.58075]
[1736974580836,3.841,3443.7,3442.9,1.3849]
[1736974581127,0.5808,3443.0,3442.9,0.58081]
[1736974581326,0.58078,3443.2,3443.1,0.58078]
[1736974582038,1.45175,3443.6,3442.8,44.0078]
[1736974582540,0.58077,3443.2,3443.1,0.58077]
[1736974582743,0.58079,3443.1,3443.0,0.58079]
[1736974583037,3.841,3443.7,3442.8,46.3112267]
[1736974583234,0.58075,3443.3,3443.2,0.58075]
[1736974583436,0.58075,3443.3,3442.8,47.7632867]
[1736974583437,1.45175,3443.6,3442.8,46.3112267]
[1736974583638,0.58079,3443.1,3443.0,0.58079]
[1736974583845,0.58071,3443.5,3443.2,0.58076]
[1736974584137,0.58078,3443.2,3443.1,0.58077]
[1736974584741,0.58074,3443.4,3443.3,0.58073]
[1736974585137,3.841,3443.7,3442.9,3.7554467]
[1736974585339,0.58071,3443.6,3443.5,0.5807]
[1736974586037,0.58074,3443.4,3442.9,0.7881]
[1736974586240,0.58079,3443.1,3442.8,44.0078]
[1736974586438,0.58079,3443.1,3442.9,0.58081]
[1736974586637,0.58079,3443.1,3443.0,0.5808]
[1736974587136,0.58079,3443.1,3442.8,44.0078]
[1736974587337,0.58076,3443.2,3443.0,0.58079]
[1736974587538,0.7619,3443.3,3442.9,0.5808]
[1736974587539,0.58079,3443.1,3442.9,0.5808]
[1736974588440,0.58075,3443.3,3443.1,0.58077]
[1736974588640,3.841,3443.7,3443.3,0.58074]
[1736974588641,0.58072,3443.5,3443.3,0.58074]
[1736974589040,0.58073,3443.4,3443.3,0.58074]
[1736974589240,4.5801,3443.7,3443.1,2.3034267]
[1736974589443,5.16079,3443.7,3443.5,0.5807]
[1736974589642,0.5807,3443.6,3443.5,0.58071]
[1736974589840,1.3723,3443.7,3443.1,2.3034267]
[1736974590044,1.95298,3443.7,3443.6,0.58069]
[1736974590447,1.95298,3443.7,3443.5,0.5807]
[1736974590742,0.6332,3443.7,3443.6,0.58069]
[1736974591045,3.2078,3444.1,3443.9,0.58064]
[1736974591547,3.78842,3444.1,3443.9,0.58064]
[1736974591840,0.58063,3444.0,3443.9,0.58064]
[1736974592043,3.78842,3444.1,3443.9,0.58064]
[1736974592242,1.37598,3444.3,3444.2,0.58059]
[1736974592544,0.7954,3444.3,3444.2,0.58059]
[1736974593039,0.7359,3444.5,3444.0,5.5112267]
[1736974593240,0.58052,3444.7,3444.5,0.58053]
[1736974593640,0.58053,3444.6,3444.5,0.58054]
[1736974593944,1.4788,3445.1,3444.2,40.8]
[1736974594342,0.58052,3444.7,3444.6,0.58052]
[1736974594738,0.58052,3444.7,3444.5,0.58053]
[1736974594938,3.2078,3444.9,3444.2,40.8]
[1736974595137,0.58057,3444.4,3444.2,40.8]
[1736974595446,0.58057,3444.4,3444.3,0.58058]
[1736974596236,4.659,3444.9,3444.0,5.5112267]
[1736974596441,0.58054,3444.5,3444.4,0.58055]
[1736974596643,0.58054,3444.5,3444.3,0.58057]
[1736974596944,0.58054,3444.5,3444.4,0.58056]
[1736974597846,4.659,3444.9,3444.0,46.3112267]
[1736974598049,0.58057,3444.4,3444.3,0.58057]
[1736974598247,4.659,3444.9,3444.4,0.58055]
[1736974598248,0.58055,3444.5,3444.4,0.58055]
[1736974598636,0.58057,3444.4,3444.3,0.58057]
[1736974599652,2.03173,3444.8,3444.3,0.58057]
[1736974599850,3.2078,3444.9,3444.4,0.58055]
[1736974600045,0.58058,3444.4,3444.0,5.5112267]
[1736974600353,0.58058,3444.4,3444.3,0.58058]
[1736974600552,3.2078,3444.5,3443.7,3.0475267]
[1736974600848,0.58063,3444.0,3443.9,0.58063]
[1736974601345,0.7633,3444.3,3443.9,0.58063]
[1736974601645,0.5806,3444.2,3444.0,0.58061]
[1736974601950,0.58063,3444.0,3443.8,40.8]
[1736974602150,0.58063,3444.0,3443.9,0.58064]
[1736974602738,0.58064,3444.0,3443.8,41.38065]
[1736974602949,0.58064,3444.0,3443.9,0.58064]
[1736974603150,1.5004,3444.3,3443.8,40.8]
[1736974603343,0.7633,3444.3,3444.2,0.58059]
[1736974603646,3.78835,3444.5,3444.3,0.58056]
[1736974603839,0.58053,3444.6,3444.3,2.3034267]
[1736974604146,0.58052,3444.7,3444.5,0.58053]
[1736974604343,1.5377,3444.8,3444.7,0.58051]
[1736974604344,1.3539,3444.8,3444.7,0.58051]
[1736974604550,1.35389,3444.8,3444.7,0.58051]
[1736974605249,0.7734,3444.8,3444.4,3.2078]
[1736974605750,0.58054,3444.5,3444.4,3.2078]
[1736974606746,0.58054,3444.5,3444.4,3.78836]
[1736974607248,0.58054,3444.5,3444.4,3.2078]
[1736974609648,3.2078,3444.6,3444.0,0.58062]
[1736974609851,0.58063,3444.1,3444.0,0.58062]
[1736974610756,0.58063,3444.0,3443.9,3.2078]
[1736974610955,0.58066,3443.8,3443.7,0.58066]
[1736974612156,0.58068,3443.7,3443.6,0.58068]
[1736974612656,0.58067,3443.8,3443.7,0.58067]
[1736974612855,1.4902,3444.0,3443.5,2.3034267]
[1736974613257,0.58067,3443.8,3443.7,0.58068]
[1736974613753,0.58068,3443.7,3443.6,0.58069]
[1736974613959,0.58067,3443.8,3443.7,0.58067]
[1736974614455,1.4902,3444.0,3443.3,3.2078]
[1736974614759,0.58068,3443.7,3443.6,0.58068]
[1736974615155,1.4902,3444.0,3443.3,3.2078]
[1736974615351,0.58073,3443.4,3443.3,3.78854]
[1736974615552,2.94178,3444.0,3443.2,43.1034267]
[1736974615753,0.58075,3443.3,3443.2,43.1034267]
[1736974615948,0.58075,3443.3,3443.2,43.6841867]
[1736974616251,0.58074,3443.4,3443.3,0.58074]
[1736974616850,0.58075,3443.3,3443.2,40.8]
[1736974617058,2.3034267,3443.9,3443.0,0.58079]
[1736974617253,0.58078,3443.1,3443.0,0.58079]
[1736974617455,0.7692,3443.2,3443.0,40.8]
[1736974617757,0.58078,3443.1,3443.0,41.3808]
[1736974617959,0.58078,3443.1,3443.0,40.8]
[1736974618758,1.35248,3443.1,3443.0,40.8]
[1736974620159,0.7717,3443.1,3442.9,3.2078]
[1736974620357,1.35249,3443.1,3443.0,0.5808]
[1736974620751,1.35249,3443.1,3443.0,41.3808]
[1736974621152,0.7717,3443.1,3443.0,41.3808]
[1736974621352,1.35251,3443.1,3443.0,41.3808]
[1736974621552,1.35253,3443.1,3443.0,41.3808]
[1736974621752,1.35253,3443.1,3443.0,40.8]
[1736974622350,1.35253,3443.1,3443.0,41.38084]
[1736974623265,1.35253,3443.1,3443.0,40.8]
[1736974623950,0.7717,3443.1,3443.0,41.38084]
[1736974624865,0.58084,3443.1,3443.0,40.8]
[1736974625461,0.7692,3443.2,3442.3,2.3034267]
[1736974625462,1.45214,3443.0,3442.3,2.3034267]
[1736974625665,0.58097,3442.4,3442.2,0.58099]
[1736974625857,0.58097,3442.4,3442.0,6.7932267]
[1736974625858,0.58097,3442.4,3442.3,41.38097]
[1736974626063,0.58095,3442.5,3442.4,0.58095]
[1736974626463,3.2078,3442.8,3442.3,40.8]
[1736974626464,0.58095,3442.4,3442.3,40.8]
[1736974627258,3.78875,3442.4,3442.3,40.8]
[1736974628264,3.78875,3442.4,3442.3,41.38097]
[1736974628764,3.2078,3442.4,3442.3,41.38097]
[1736974629657,3.2078,3442.8,3442.3,40.8]
[1736974629959,0.58095,3442.4,3442.3,40.8]
[1736974631068,0.58095,3442.4,3442.3,41.38097]
[1736974631471,0.58094,3442.5,3442.4,0.58093]
[1736974631763,3.2078,3442.8,3442.7,0.5809]
[1736974631967,3.2078,3442.8,3442.7,2.8843267]
[1736974632357,3.2078,3442.8,3442.7,43.6843267]
[1736974632762,0.58084,3443.1,3443.0,0.58084]
[1736974632957,3.2078,3443.3,3442.7,43.1034267]
[1736974633161,3.2078,3443.3,3442.7,40.8]
[1736974633468,1.35275,3443.1,3443.0,0.58085]
[1736974634167,0.7719,3443.1,3443.0,0.58085]
[1736974634464,1.35274,3443.1,3443.0,0.58085]
[1736974634864,1.35274,3443.1,3442.7,40.8]
[1736974634865,0.7719,3443.1,3442.7,40.8]
[1736974635267,0.7719,3443.1,3442.8,0.58088]
[1736974635268,0.58089,3442.9,3442.8,0.58088]
[1736974636073,0.7719,3443.1,3442.6,40.8]
[1736974636365,0.58084,3443.1,3443.0,0.58085]
[1736974636670,1.35003,3443.2,3443.1,0.58084]
[1736974637661,3.2078,3443.3,3442.8,1.45223]
[1736974637866,0.58077,3443.6,3443.5,0.58075]
[1736974638268,0.58077,3443.6,3443.1,1.45206]
[1736974638461,0.58079,3443.5,3443.4,0.58076]
[1736974638664,3.2078,3443.7,3442.9,3.2078]
[1736974638867,0.58085,3443.2,3443.1,0.58083]
[1736974639070,2.3034267,3443.6,3442.5,3.0417267]
[1736974639274,0.58089,3442.9,3442.8,0.58087]
[1736974639466,0.7991,3443.1,3442.5,0.7383]
[1736974639668,0.7536,3443.0,3442.5,0.7383]
[1736974639869,0.58092,3442.7,3442.6,0.5809]
[1736974640069,0.58094,3442.6,3442.5,0.58092]
[1736974640270,3.9671,3442.9,3442.4,3.2078]
[1736974640472,0.58099,3442.3,3442.2,0.58097]
[1736974640777,0.58101,3442.2,3442.1,0.581]
[1736974640972,0.58101,3442.2,3442.1,41.381]
[1736974641272,0.58099,3442.3,3442.2,0.58097]
[1736974641975,1.45227,3442.7,3442.1,40.8]
[1736974641976,0.58099,3442.2,3442.1,41.381]
[1736974642173,0.58099,3442.2,3442.1,0.581]
[1736974642475,0.58099,3442.2,3441.8,3.2078]
[1736974642476,0.58101,3442.1,3442.0,0.58102]
[1736974642678,3.9671,3442.9,3442.0,2.3034267]
[1736974642886,3.9671,3442.9,3441.7,0.7925]
[1736974642887,3.2078,3442.9,3442.8,0.58089]
[1736974643774,3.78867,3442.9,3442.8,40.8]
[1736974644173,3.78867,3442.9,3442.8,41.38089]
[1736974644481,3.2078,3442.9,3442.8,41.38089]
[1736974645179,3.78867,3442.9,3442.8,41.38089]
[1736974645380,3.2078,3442.9,3442.8,41.38089]
[1736974645870,1.37994,3443.1,3442.8,41.38089]
[1736974646071,1.37994,3443.1,3443.0,0.58085]
[1736974646278,0.58086,3443.0,3442.9,0.58086]
[1736974646478,1.37994,3443.1,3443.0,0.58085]
[1736974647281,0.58087,3443.0,3442.9,0.58085]
[1736974647781,0.58089,3442.8,3442.7,0.58089]
[1736974647976,2.10558,3442.9,3442.8,0.58089]
[1736974648377,0.58095,3442.5,3442.4,0.58093]
[1736974650876,0.58107,3441.8,3441.7,0.58107]
[1736974651776,4.66045,3441.8,3441.2,40.8]
[1736974651984,0.58114,3441.3,3441.2,41.38115]
[1736974652481,0.5811,3441.6,3441.5,0.58109]
[1736974652885,0.58111,3441.5,3441.4,0.58111]
[1736974653082,0.58111,3441.5,3441.3,0.58114]
[1736974653279,3.2078,3441.8,3441.2,40.8]
[1736974653479,0.58114,3441.3,3441.2,41.38115]
[1736974654096,0.58114,3441.3,3441.2,40.8]
[1736974654288,0.58114,3441.3,3441.2,41.38116]
[1736974654593,0.58114,3441.3,3441.2,40.8]
[1736974656889,0.58114,3441.3,3441.2,41.38115]
[1736974657280,0.58113,3441.4,3441.2,41.38115]
[1736974657484,0.58113,3441.4,3441.3,0.58114]
[1736974657681,0.7894,3441.6,3441.2,40.8]
[1736974657889,0.58114,3441.3,3441.2,41.38115]
[1736974658989,0.58108,3441.7,3441.6,0.58109]
[1736974659192,0.5811,3441.6,3441.5,0.5811]
[1736974659390,3.2078,3441.8,3441.2,40.8]
[1736974659688,1.5054,3442.1,3441.7,0.58107]
[1736974659891,0.58091,3442.7,3442.6,0.58091]
[1736974660190,0.58094,3442.5,3442.4,0.58094]
[1736974660391,0.58094,3442.5,3442.4,41.38094]
[1736974660783,0.58093,3442.6,3442.5,0.58093]
[1736974660994,0.58105,3441.9,3441.8,0.58104]
[1736974661191,0.58105,3441.9,3441.3,0.58113]
[1736974661192,0.58114,3441.4,3441.3,0.58113]
[1736974661391,1.45269,3441.7,3441.0,47.0949267]
[1736974661594,4.6826,3441.8,3441.0,47.0949267]
[1736974661595,5.451,3441.8,3441.0,47.0949267]
[1736974661795,0.58112,3441.5,3441.4,0.58112]
[1736974662186,0.58113,3441.4,3441.3,0.58113]
[1736974662389,0.58115,3441.3,3441.2,0.58115]
[1736974662599,0.58113,3441.4,3441.3,0.58113]
[1736974662891,5.451,3441.8,3441.0,44.7915]
[1736974663098,0.58111,3441.5,3441.4,0.58112]
[1736974663390,0.58111,3441.5,3441.3,0.58113]
[1736974663595,5.451,3441.8,3441.3,0.58113]
[1736974663796,0.58112,3441.5,3441.0,44.7915]
[1736974663997,0.58107,3441.7,3441.3,0.58113]
[1736974664294,0.58112,3441.4,3441.3,0.58113]
[1736974664794,0.58112,3441.5,3441.4,0.58112]
[1736974665797,0.58113,3441.4,3441.3,0.58113]
[1736974666393,0.58111,3441.5,3441.4,0.58112]
[1736974667090,0.58113,3441.4,3441.3,0.58113]
[1736974668092,0.58117,3441.1,3441.0,44.7915]
[1736974668295,0.58117,3441.2,3441.1,0.58117]
[1736974668495,0.58109,3441.6,3441.1,0.58116]
[1736974668697,0.58116,3441.3,3441.1,0.58116]
[1736974669193,7.7544267,3441.8,3441.1,0.58116]
[1736974669194,1.45273,3441.6,3441.1,0.58116]
[1736974669394,0.58116,3441.2,3441.1,0.58116]
[1736974669601,1.45273,3441.6,3441.0,44.7915]
[1736974669894,0.58117,3441.2,3441.1,0.58117]
[1736974670089,2.3034267,3441.5,3441.0,40.8]
[1736974670292,0.58127,3440.6,3440.5,0.58127]
[1736974670596,0.58127,3440.6,3440.4,0.58128]
[1736974670796,0.58126,3440.6,3440.5,0.58128]
[1736974670992,0.58128,3440.5,3440.4,41.38129]
[1736974671497,0.58128,3440.5,3440.4,40.8]